bitfinex-derivatives/quotes_ETHF0:USTF0_20240930
["timestamp","ask_amount","ask_price","bid_price","bid_amount"]
[1727736886060,4.8309,2609.0,2608.6,1.24]
[1727736886261,0.3723,2608.9,2608.7,0.4001]
[1727736886463,0.3723,2608.9,2608.7,0.78352]
[1727736887061,0.3723,2608.9,2608.8,0.38341]
[1727736887261,4.4478,2609.3,2608.8,0.3984]
[1727736887463,1.24,2609.1,2608.8,0.3984]
[1727736887766,1.24,2608.9,2608.8,0.3984]
[1727736889056,1.24,2608.9,2608.7,0.4001]
[1727736889264,1.24,2608.9,2608.6,0.38343]
[1727736889265,1.6327,2608.8,2608.6,0.38343]
[1727736889465,2.038,2608.8,2608.6,0.38343]
[1727736891672,2.038,2608.8,2608.7,0.38342]
[1727736895979,0.798,2608.8,2608.7,0.38342]
[1727736896676,0.3927,2608.8,2608.7,0.38342]
[1727736900782,0.3927,2608.8,2608.5,0.7753]
[1727736900976,0.7763,2608.7,2608.5,1.15874]
[1727736902690,1.24,2608.6,2608.3,0.3739]
[1727736902877,1.24,2608.4,2608.1,3.2078]
[1727736903077,1.24,2608.3,2608.1,3.2078]
[1727736903378,0.3897,2608.2,2608.1,3.2078]
[1727736903582,0.3897,2608.2,2608.0,0.3745]
[1727736903785,1.1637,2608.2,2607.9,0.78444]
[1727736903990,1.1637,2608.2,2607.9,0.78443]
[1727736906701,3.2078,2608.5,2608.1,1.24]
[1727736906896,3.2078,2608.5,2608.2,0.38349]
[1727736907193,3.2078,2608.5,2608.3,0.38348]
[1727736907790,3.2078,2608.5,2608.2,0.75488]
[1727736908498,3.2078,2608.5,2608.3,0.38348]
[1727736909105,3.2078,2608.5,2608.2,0.75489]
[1727736909495,1.1193,2608.6,2608.3,0.38348]
[1727736909696,3.2078,2608.5,2608.3,0.38348]
[1727736911396,3.2078,2608.5,2608.2,0.3714]
[1727736911591,3.2078,2608.5,2608.4,0.38347]
[1727736911999,3.2078,2608.5,2608.2,0.3714]
[1727736912303,4.4478,2608.5,2608.3,0.38348]
[1727736913505,4.4478,2608.5,2608.2,0.75489]
[1727736914809,3.2078,2608.5,2608.3,1.24]
[1727736915007,3.2078,2608.5,2608.4,2.42607]
[1727736915205,3.2078,2608.5,2608.4,6.25967]
[1727736916003,3.2078,2608.5,2608.4,2.42607]
[1727736916201,3.2078,2608.5,2608.4,0.4024]
[1727736917011,3.977,2608.5,2608.4,0.4024]
[1727736918115,9.0506,2608.5,2608.0,2.10102976]
[1727736918308,0.38349,2608.3,2607.9,0.3861]
[1727736918505,3.2078,2608.2,2607.9,0.3861]
[1727736918717,0.38351,2608.1,2607.9,0.3861]
[1727736918906,1.17771,2608.1,2607.6,1.38960976]
[1727736919110,1.17771,2608.1,2607.6,0.76968]
[1727736919111,0.4054,2608.0,2607.6,0.76968]
[1727736919414,1.6454,2608.0,2607.6,0.76968]
[1727736919713,1.6454,2608.0,2607.6,0.3861]
[1727736919904,1.6454,2608.0,2607.7,0.38357]
[1727736921109,1.6454,2608.0,2607.6,0.3861]
[1727736921313,1.6454,2608.0,2607.6,1.77570976]
[1727736921507,0.4054,2608.0,2607.6,1.77570976]
[1727736921707,0.4054,2608.0,2607.6,1.39212976]
[1727736921906,0.4054,2608.0,2607.7,0.38357]
[1727736922208,0.4054,2608.0,2607.6,1.77569976]
[1727736922512,0.4054,2608.0,2607.6,1.39212976]
[1727736922823,0.4054,2608.0,2607.8,0.38356]
[1727736923909,0.403,2608.1,2607.8,0.38356]
[1727736928221,0.403,2608.1,2607.8,0.38355]
[1727736928621,0.403,2608.1,2607.6,4.59992976]
[1727736929021,0.403,2608.1,2607.8,0.38355]
[1727736930416,0.403,2608.1,2607.9,0.77414]
[1727736931024,0.403,2608.1,2607.9,0.3906]
[1727736932221,0.78652,2608.1,2607.9,0.3906]
[1727736932516,0.78652,2608.1,2607.7,0.38357]
[1727736932517,0.3923,2608.0,2607.7,0.38357]
[1727736932823,0.3701,2607.9,2607.8,0.38356]
[1727736933015,0.3701,2607.9,2607.6,3.5947]
[1727736933212,0.3985,2607.8,2607.7,0.38357]
[1727736934714,0.3985,2607.8,2607.6,3.97828]
[1727736935215,0.3985,2607.8,2607.7,0.38357]
[1727736935817,0.3985,2607.8,2607.6,3.5947]
[1727736936016,0.3985,2607.8,2607.7,0.38357]
[1727736936217,0.3985,2607.8,2607.6,3.5947]
[1727736936416,0.3985,2607.8,2607.6,3.97828]
[1727736936718,0.3985,2607.8,2607.7,0.38357]
[1727736937720,0.3985,2607.8,2607.6,3.5947]
[1727736938117,0.3985,2607.8,2607.7,0.38357]
[1727736938820,0.3985,2607.8,2607.6,3.5947]
[1727736939021,0.3985,2607.8,2607.7,0.38357]
[1727736940414,0.3985,2607.8,2607.6,0.3869]
[1727736940621,0.3985,2607.8,2607.7,0.38357]
[1727736940829,0.3985,2607.8,2607.6,0.77047]
[1727736941024,0.3985,2607.8,2607.7,0.38357]
[1727736943236,5.8978,2608.1,2607.7,0.38357]
[1727736943237,3.2078,2608.1,2607.9,0.38354]
[1727736943432,3.2078,2608.1,2608.0,0.3885]
[1727736943732,3.2078,2608.1,2608.0,0.7697]
[1727736943927,2.3949,2608.3,2608.0,1.15323]
[1727736944135,2.3949,2608.3,2608.1,0.3921]
[1727736944527,2.3949,2608.3,2608.1,0.77561]
[1727736944832,2.3949,2608.3,2608.1,0.3921]
[1727736946032,1.1549,2608.3,2608.1,0.7756]
[1727736946237,3.2078,2608.4,2608.1,0.3921]
[1727736946540,3.6067,2608.4,2608.2,0.3835]
[1727736947435,3.6067,2608.4,2608.1,0.7756]
[1727736948034,3.6067,2608.4,2608.0,0.7697]
[1727736948035,1.24,2608.3,2608.0,1.15322]
[1727736949030,1.24,2608.3,2608.1,0.38351]
[1727736950837,1.24,2608.3,2608.0,0.7697]
[1727736951338,1.24,2608.3,2608.1,0.38351]
[1727736951834,1.24,2608.3,2608.0,0.7697]
[1727736952028,1.6235,2608.2,2607.8,2.17626976]
[1727736952228,4.38192,2608.1,2607.8,2.17626976]
[1727736952437,4.3991,2608.1,2607.8,2.17626976]
[1727736956333,3.2078,2608.1,2607.9,1.00602976]
[1727736956533,4.3382,2608.4,2608.0,0.38352]
[1727736956930,4.3382,2608.4,2608.1,0.3674]
[1727736957829,4.3382,2608.4,2608.1,0.75091]
[1727736958340,1.62351,2608.2,2607.8,1.38957976]
[1727736958535,3.6004,2608.1,2607.9,0.38354]
[1727736958730,3.6004,2608.1,2607.8,1.75696976]
[1727736959530,3.98392,2608.1,2607.8,1.37342976]
[1727736959735,0.8012,2608.0,2607.8,1.37342976]
[1727736960933,0.8012,2608.0,2607.8,1.00602976]
[1727736960934,2.0412,2608.0,2607.8,1.00602976]
[1727736961137,2.0412,2608.0,2607.7,1.00602976]
[1727736962139,2.0412,2608.0,2607.8,1.00602976]
[1727736962337,2.0412,2608.0,2607.7,1.00602976]
[1727736962840,2.42473,2608.0,2607.7,1.00602976]
[1727736963231,1.24,2607.9,2607.7,1.00602976]
[1727736963631,0.3885,2607.8,2607.7,1.00602976]
[1727736963832,0.3885,2607.8,2607.6,1.40712976]
[1727736964138,0.3885,2607.8,2607.7,1.00602976]
[1727736964335,0.3885,2607.8,2607.6,1.40712976]
[1727736964538,3.97986,2607.8,2607.6,1.00602976]
[1727736964735,1.24,2607.7,2607.5,1.00602976]
[1727736965047,2.0055,2607.6,2607.4,1.00602976]
[1727736965245,3.5914,2607.5,2607.3,1.00602976]
[1727736965441,1.24,2607.4,2607.3,1.00602976]
[1727736966235,1.24,2607.4,2607.2,1.88029773]
[1727736966236,1.24,2607.4,2607.2,1.00602976]
[1727736966532,1.62362,2607.4,2607.2,1.00602976]
[1727736966741,0.38363,2607.3,2607.2,1.00602976]
[1727736966936,4.21883,2607.3,2606.9,1.00602976]
[1727736967143,4.8354,2607.2,2606.9,1.38970976]
[1727736967443,4.8354,2607.2,2606.9,0.38368]
[1727736967444,5.2055,2607.2,2606.9,0.38368]
[1727736967643,1.24,2607.0,2606.8,1.00602976]
[1727736967840,1.24,2606.9,2606.7,1.38973976]
[1727736968243,1.24,2606.9,2606.7,0.38371]
[1727736968244,0.3876,2606.8,2606.7,0.38371]
[1727736970744,3.0693,2607.1,2606.7,0.38371]
[1727736971045,0.39,2607.0,2606.7,0.38371]
[1727736974249,0.39,2607.0,2606.8,0.38369]
[1727736975243,3.5771,2607.1,2606.9,0.38369]
[1727736975450,3.5771,2607.1,2607.0,0.3938]
[1727736975649,3.5771,2607.1,2606.5,5.9078]
[1727736975849,3.5771,2607.1,2606.8,0.3837]
[1727736976041,3.96076,2607.1,2606.6,1.55432]
[1727736976351,0.38367,2607.0,2606.6,1.55432]
[1727736976542,6.2771,2607.1,2606.6,1.55432]
[1727736976543,6.66077,2607.1,2606.6,1.55432]
[1727736976951,6.2771,2607.1,2606.6,1.1706]
[1727736977141,0.38368,2607.0,2606.6,1.55433]
[1727736977346,6.2771,2607.1,2606.6,1.55433]
[1727736977654,6.66077,2607.1,2606.6,1.55433]
[1727736977843,6.2771,2607.1,2606.2,3.2968]
[1727736978042,2.7,2606.5,2606.2,0.7709]
[1727736978244,5.9078,2606.7,2606.3,0.38378]
[1727736978446,0.369,2606.6,2606.3,0.38378]
[1727736979449,0.369,2606.6,2606.2,0.7709]
[1727736979450,0.369,2606.6,2606.2,1.15468]
[1727736981050,0.369,2606.6,2606.2,0.7709]
[1727736981258,2.7,2606.5,2606.2,0.7709]
[1727736983253,3.08378,2606.3,2606.2,0.3714]
[1727736983463,2.7,2606.3,2605.8,1.16245]
[1727736983648,0.3902,2606.2,2605.9,0.75493]
[1727736984046,0.3902,2606.2,2605.9,0.3711]
[1727736984259,0.3902,2606.2,2606.0,0.38382]
[1727736984755,0.3902,2606.2,2605.9,0.3711]
[1727736985062,0.3902,2606.2,2605.9,0.75493]
[1727736985453,0.3902,2606.2,2605.9,0.75494]
[1727736986253,0.3902,2606.2,2605.9,0.3711]
[1727736986455,0.3902,2606.2,2606.0,0.38382]
[1727736987765,0.3902,2606.2,2605.9,0.75492]
[1727736988954,0.3902,2606.2,2605.9,0.3711]
[1727736989156,0.3902,2606.2,2606.0,0.38382]
[1727736990262,3.2078,2606.4,2605.9,3.0711]
[1727736990760,3.2078,2606.4,2606.1,0.3838]
[1727736991058,3.2078,2606.4,2606.2,0.7335]
[1727736991557,3.2078,2606.4,2606.3,0.3672]
[1727736991960,1.17254,2606.6,2606.3,0.3672]
[1727736991961,0.7888,2606.6,2606.3,0.3672]
[1727736992651,0.7888,2606.6,2606.4,0.38376]
[1727736993353,1.24,2606.5,2606.4,0.38376]
[1727736993948,1.24,2606.5,2606.3,0.75097]
[1727736994164,1.24,2606.5,2606.4,0.38376]
[1727736994361,1.24,2606.5,2606.3,0.3672]
[1727736994568,1.24,2606.5,2606.3,0.75096]
[1727736996652,1.24,2606.5,2606.4,0.38376]
[1727736997061,0.3939,2606.6,2606.3,1.6072]
[1727736997359,0.3939,2606.6,2606.5,0.38375]
[1727736997762,1.6339,2606.6,2606.5,0.38375]
[1727736998851,1.6339,2606.6,2606.4,0.38375]
[1727736999751,0.3939,2606.6,2606.4,0.38375]
[1727737000060,0.3939,2606.6,2606.4,0.38376]
[1727737001955,0.3939,2606.6,2606.3,3.95877]
[1727737002156,0.3939,2606.6,2606.3,0.75097]
[1727737002355,0.3673,2606.5,2606.3,0.3672]
[1727737003063,0.3673,2606.5,2606.2,0.7335]
[1727737003064,2.7,2606.4,2606.2,0.7335]
[1727737003261,3.0812,2606.4,2606.2,0.7335]
[1727737004664,3.46497,2606.4,2606.2,0.367]
[1727737004869,3.46497,2606.4,2606.1,0.3928]
[1727737005060,3.2078,2606.3,2606.1,0.3928]
[1727737005260,3.0812,2606.4,2606.1,0.3928]
[1727737005557,0.3773,2606.2,2606.1,0.77661]
[1727737005759,0.3773,2606.2,2606.1,1.16621]
[1727737008372,0.3773,2606.2,2606.1,0.7824]
[1727737008572,0.3773,2606.2,2606.1,1.16621]
[1727737009764,3.0812,2606.4,2606.1,1.16621]
[1727737010069,0.7682,2606.4,2606.1,0.7824]
[1727737010465,0.7682,2606.4,2606.1,1.1662]
[1727737011365,0.7682,2606.4,2606.1,0.7824]
[1727737011567,0.387,2606.4,2606.2,0.38378]
[1727737011767,0.387,2606.4,2606.1,0.7824]
[1727737012269,0.387,2606.4,2606.1,2.17222976]
[1727737014776,0.387,2606.4,2606.1,1.78842976]
[1727737015080,0.76,2606.4,2606.1,2.17222976]
[1727737019572,0.76,2606.4,2606.2,0.38379]
[1727737019869,0.76,2606.4,2606.1,2.17222976]
[1727737021088,0.76,2606.4,2606.1,1.78842976]
[1727737021380,3.84377,2606.4,2606.1,1.00602976]
[1727737021581,1.24,2606.2,2606.1,1.00602976]
[1727737022177,1.62379,2606.2,2606.1,1.00602976]
[1727737022379,1.62379,2606.2,2606.0,1.40542976]
[1727737022678,2.37191,2606.1,2605.9,1.00602976]
[1727737022882,3.59162,2606.0,2605.8,1.00602976]
[1727737023184,1.24,2605.9,2605.8,1.00602976]
[1727737023374,1.24,2605.9,2605.7,1.00602976]
[1727737023683,1.24,2605.8,2605.7,1.00602976]
[1727737023876,1.24,2605.8,2605.7,2.37068076]
[1727737024172,1.24,2605.8,2605.7,1.00602976]
[1727737024379,1.24,2605.8,2605.7,2.75455695]
[1727737024579,1.24,2605.8,2605.7,2.37068695]
[1727737024776,1.24,2605.8,2605.7,1.00602976]
[1727737024980,5.46145,2605.8,2605.7,1.00602976]
[1727737025172,5.46145,2605.8,2605.3,1.00602976]
[1727737025173,5.0776,2605.8,2605.3,1.00602976]
[1727737025372,1.62391,2605.4,2605.3,1.00602976]
[1727737025574,1.24,2605.4,2605.1,1.00602976]
[1727737025777,1.24,2605.2,2605.1,1.00602976]
[1727737025973,1.24,2605.2,2605.0,1.00602976]
[1727737026175,0.372,2605.1,2605.0,1.00602976]
[1727737026587,0.372,2605.1,2604.9,1.39872976]
[1727737026781,0.372,2605.1,2604.8,1.00602976]
[1727737026782,1.24,2605.0,2604.8,1.00602976]
[1727737027277,0.3933,2604.9,2604.8,1.00602976]
[1727737027581,0.3933,2604.9,2604.8,0.384]
[1727737027582,3.0933,2604.9,2604.8,0.384]
[1727737027776,3.0933,2604.9,2604.7,1.77012976]
[1727737027977,10.1403,2604.9,2604.4,1.00602976]
[1727737028181,2.7,2604.5,2604.4,0.38405]
[1727737028484,0.3834,2604.8,2604.5,0.38404]
[1727737028485,2.7,2604.6,2604.5,0.38404]
[1727737028683,2.7,2604.6,2604.3,3.2078]
[1727737028684,2.7,2604.8,2604.3,3.2078]
[1727737028884,3.6011,2604.9,2604.3,3.2078]
[1727737029090,2.7,2605.0,2604.7,0.38401]
[1727737029289,2.7,2605.0,2604.3,4.21382976]
[1727737029290,2.7,2605.0,2604.8,0.7519]
[1727737029585,3.6011,2605.2,2605.0,0.38396]
[1727737029777,0.3787,2605.4,2605.1,0.38395]
[1727737029985,0.3787,2605.4,2605.2,0.38393]
[1727737030288,5.9078,2605.8,2605.4,0.38391]
[1727737030589,3.0787,2605.8,2605.4,0.38391]
[1727737030974,3.0787,2605.8,2605.3,0.7858]
[1727737031582,0.3787,2605.8,2605.3,3.4858]
[1727737031781,0.4008,2606.0,2605.5,3.2078]
[1727737031988,0.4008,2606.0,2605.6,0.38387]
[1727737032178,0.4008,2606.0,2605.7,0.38386]
[1727737032578,0.4008,2606.0,2605.5,3.2078]
[1727737032779,0.4008,2606.0,2605.6,0.38387]
[1727737032979,0.4008,2606.0,2605.7,0.38386]
[1727737033195,0.4008,2606.0,2605.6,0.38387]
[1727737033379,0.4008,2606.0,2605.5,3.2078]
[1727737033580,0.4008,2606.0,2605.6,0.38387]
[1727737033885,0.4008,2606.0,2605.7,0.38386]
[1727737034184,0.4008,2606.0,2605.5,3.2078]
[1727737034493,0.4008,2606.0,2605.6,0.38387]
[1727737036092,0.4008,2606.0,2605.4,0.3804]
[1727737036093,2.7,2605.9,2605.4,0.3804]
[1727737036279,2.7,2605.9,2605.5,0.38389]
[1727737036477,2.7,2605.9,2605.4,0.7643]
[1727737036679,3.08384,2605.9,2605.4,0.7643]
[1727737037187,2.7,2605.6,2605.3,0.7858]
[1727737037691,0.3849,2605.5,2605.3,0.7858]
[1727737038278,0.3849,2605.5,2605.2,3.2078]
[1727737038484,0.3849,2605.5,2605.2,3.59173]
[1727737041191,0.3849,2605.5,2605.2,3.2078]
[1727737041382,6.3082,2605.8,2605.2,3.2078]
[1727737041587,2.7,2605.7,2605.2,3.2078]
[1727737041784,3.08387,2605.7,2605.2,3.59173]
[1727737042087,2.7,2605.7,2605.3,0.38392]
[1727737042390,3.99206,2605.8,2605.2,3.2078]
[1727737042391,3.0839,2605.5,2605.2,3.2078]
[1727737042594,3.0839,2605.5,2605.0,0.7558]
[1727737042595,0.3724,2605.4,2605.0,0.7558]
[1727737043093,0.4004,2605.3,2605.0,1.13976]
[1727737045792,0.4004,2605.3,2605.0,0.7558]
[1727737046096,0.3794,2605.6,2605.2,0.38394]
[1727737046494,0.3794,2605.6,2605.0,3.9636]
[1727737046689,0.3794,2605.6,2605.1,0.38395]
[1727737046886,0.3794,2605.6,2605.2,0.75684]
[1727737047184,0.3794,2605.6,2605.2,0.3729]
[1727737047386,0.3794,2605.6,2605.3,0.38392]
[1727737049397,0.76329,2605.6,2605.2,0.75683]
[1727737050388,2.7,2605.5,2605.3,0.38392]
[1727737050591,0.3731,2605.4,2605.0,0.7558]
[1727737050797,3.1059,2605.3,2605.0,1.13976]
[1727737051000,3.1059,2605.3,2605.0,0.7558]
[1727737051308,3.1059,2605.3,2605.0,1.13976]
[1727737051487,3.1059,2605.3,2604.4,1.00602976]
[1727737051488,2.7,2605.1,2604.4,1.00602976]
[1727737051795,2.7,2604.8,2604.6,1.1519]
[1727737051995,2.7,2604.8,2604.6,0.7682]
[1727737052388,2.7,2604.8,2604.4,0.3837]
[1727737052389,0.4059,2604.7,2604.4,0.3837]
[1727737052793,0.4059,2604.7,2604.4,0.76775]
[1727737053196,0.4059,2604.7,2604.0,4.21382976]
[1727737053197,2.7,2604.6,2604.0,4.21382976]
[1727737053396,3.4567,2605.0,2604.3,0.368]
[1727737053605,3.8582,2605.0,2604.4,0.38404]
[1727737053800,4.24217,2605.0,2604.4,0.38404]
[1727737054199,2.7,2604.8,2604.4,0.38404]
[1727737054696,2.7,2604.8,2604.5,0.38404]
[1727737055096,2.7,2604.8,2604.3,3.5758]
[1727737055097,2.7,2604.8,2604.6,0.3849]
[1727737057304,2.7,2604.8,2604.4,0.38405]
[1727737057696,2.7,2604.8,2604.5,0.38404]
[1727737059306,1.54217,2605.0,2604.4,0.38406]
[1727737059307,4.24217,2605.0,2604.4,0.38406]
[1727737059496,4.24217,2605.0,2604.4,0.38404]
[1727737060003,4.24217,2605.0,2604.5,0.38404]
[1727737061397,0.38399,2604.9,2604.4,0.38404]
[1727737061592,3.8582,2605.0,2604.5,0.78204]
[1727737061593,2.7,2604.8,2604.5,0.78204]
[1727737063214,2.7,2604.8,2604.5,0.398]
[1727737064004,2.7,2604.6,2604.3,0.75206]
[1727737064299,2.7,2604.6,2604.3,0.7507]
[1727737064499,2.7,2604.6,2604.2,0.3703]
[1727737064500,2.7,2604.4,2604.2,0.3703]
[1727737064801,3.08407,2604.4,2603.9,0.77642]
[1727737065002,2.7,2604.2,2604.0,0.38412]
[1727737065197,2.7,2604.2,2603.9,1.16462]
[1727737065807,2.7,2604.2,2604.0,0.38412]
[1727737066406,2.7,2604.4,2604.0,0.38412]
[1727737066703,2.7,2604.4,2603.9,0.7805]
[1727737066909,0.7444,2604.5,2604.3,0.38407]
[1727737067106,0.7444,2604.5,2604.4,0.7691]
[1727737067310,0.378,2604.5,2604.4,0.7691]
[1727737069407,0.378,2604.5,2604.4,1.15316]
[1727737069608,0.378,2604.5,2604.4,0.7691]
[1727737070109,0.3783,2604.7,2604.5,0.38404]
[1727737070303,0.3783,2604.7,2604.4,1.53085]
[1727737072106,2.7,2604.5,2604.4,0.7691]
[1727737072312,2.7,2604.5,2604.4,0.3777]
[1727737074310,2.7,2604.5,2604.2,0.3768]
[1727737074611,0.3965,2604.4,2604.2,0.3768]
[1727737075205,0.3965,2604.4,2604.2,0.76089]
[1727737075712,3.0783,2604.7,2604.4,0.38404]
[1727737076012,3.0783,2604.7,2604.2,0.3768]
[1727737076207,3.0783,2604.7,2604.4,0.38406]
[1727737076409,3.0783,2604.7,2604.3,0.38407]
[1727737076711,3.0783,2604.7,2604.2,0.3768]
[1727737076712,3.0783,2604.7,2604.4,0.38405]
[1727737077107,3.0783,2604.7,2604.5,0.4061]
[1727737079001,3.0783,2604.7,2604.5,0.79014]
[1727737079002,2.7,2604.7,2604.5,0.79014]
[1727737081317,2.7,2604.7,2604.5,0.4061]
[1727737081517,2.7,2604.7,2604.6,0.38403]
[1727737081719,0.388,2604.8,2604.5,0.4061]
[1727737081907,0.3716,2605.0,2604.9,0.38398]
[1727737082108,0.3716,2605.0,2604.8,0.38399]
[1727737082810,0.3716,2605.0,2604.6,0.7772]
[1727737083119,0.3716,2605.0,2604.7,0.384]
[1727737083321,0.3716,2605.0,2604.8,0.38399]
[1727737083509,0.3716,2605.0,2604.9,0.38398]
[1727737083713,6.2648,2605.5,2604.9,2.7]
[1727737083918,6.2648,2605.5,2605.1,3.2078]
[1727737083919,0.3716,2605.4,2605.1,3.2078]
[1727737084218,0.3716,2605.4,2605.1,0.38395]
[1727737084425,0.3716,2605.4,2605.0,0.77866]
[1727737084923,0.3716,2605.4,2605.1,0.38395]
[1727737085215,2.7,2605.3,2605.1,0.38395]
[1727737085418,2.7,2605.3,2605.2,0.38394]
[1727737085731,0.3716,2605.4,2605.1,0.3896]
[1727737085919,0.3716,2605.4,2605.2,0.38394]
[1727737086312,0.3754,2605.5,2605.1,0.7869]
[1727737086513,3.6107,2605.6,2605.1,6.6947]
[1727737086815,3.6107,2605.6,2605.1,3.98135]
[1727737086816,2.7,2605.5,2605.1,3.98135]
[1727737087016,0.3873,2605.4,2605.1,3.98135]
[1727737087410,0.4,2605.3,2605.1,3.5974]
[1727737088519,3.1,2605.3,2605.1,3.2078]
[1727737089617,3.1,2605.3,2605.0,0.3947]
[1727737090625,0.3814,2605.2,2605.0,0.77866]
[1727737091024,0.3814,2605.2,2605.0,0.3947]
[1727737091526,0.3814,2605.2,2604.9,3.2078]
[1727737091828,2.7,2605.1,2604.9,3.2078]
[1727737092029,0.3694,2605.0,2604.9,3.2078]
[1727737092726,0.3694,2605.0,2604.9,3.59178]
[1727737094526,0.3814,2605.2,2605.0,0.38396]
[1727737094826,0.4,2605.3,2604.7,3.1043]
[1727737095020,0.4,2605.3,2604.8,0.384]
[1727737095221,3.1,2605.3,2605.0,0.38396]
[1727737095736,3.1,2605.3,2604.7,1.41032976]
[1727737096321,3.1,2605.3,2605.0,0.38396]
[1727737097022,3.1,2605.3,2605.1,0.38395]
[1727737098539,3.1,2605.3,2604.7,1.36432]
[1727737098830,3.1,2605.3,2605.1,0.38394]
[1727737100120,3.1,2605.3,2605.0,0.38396]
[1727737100721,6.3078,2605.3,2605.0,0.38396]
[1727737101728,2.7,2605.1,2604.9,0.38397]
[1727737101927,0.8004,2605.0,2604.9,0.38397]
[1727737102321,0.8004,2605.0,2604.7,0.4043]
[1727737102322,4.6396,2605.0,2604.7,0.38401]
[1727737102635,0.4029,2604.9,2604.8,0.384]
[1727737102829,0.4029,2604.9,2604.7,0.38401]
[1727737103621,0.4029,2604.9,2604.6,3.5876]
[1727737104032,0.4029,2604.9,2604.6,3.97162]
[1727737104729,3.48689,2604.9,2604.5,0.3946]
[1727737105033,3.1029,2604.9,2604.5,0.3946]
[1727737105227,3.48689,2604.9,2604.5,0.3946]
[1727737105535,2.7,2604.7,2604.4,1.0047217]
[1727737105730,2.7,2604.7,2604.4,1.7563717]
[1727737105731,0.7507,2604.6,2604.4,1.7563717]
[1727737106036,0.7507,2604.6,2604.4,1.3723217]
[1727737106434,0.3764,2604.5,2604.4,1.3723217]
[1727737109037,0.3764,2604.5,2604.4,0.3676]
[1727737111033,3.0764,2604.5,2603.9,4.2125217]
[1727737111235,3.0764,2604.5,2604.0,1.1643]
[1727737111544,3.0764,2604.5,2604.0,1.54841]
[1727737111732,3.0764,2604.5,2604.1,0.38409]
[1727737112335,0.3764,2604.5,2604.1,0.38409]
[1727737112733,0.3764,2604.5,2604.0,1.1643]
[1727737112935,0.3764,2604.5,2604.1,0.38409]
[1727737113945,0.3764,2604.5,2604.0,1.1643]
[1727737114139,3.2078,2604.7,2604.2,3.2078]
[1727737114140,5.9078,2604.7,2604.2,3.2078]
[1727737114341,6.2802,2604.7,2604.3,0.38407]
[1727737114546,6.2802,2604.7,2604.4,0.7918]
[1727737114742,6.66422,2604.7,2604.4,0.7918]
[1727737114942,6.2802,2604.7,2604.4,0.7918]
[1727737115546,2.7,2604.5,2604.4,0.7918]
[1727737116336,2.7,2604.5,2604.2,0.38408]
[1727737116648,2.7,2604.5,2604.1,0.7942]
[1727737116944,0.4006,2604.4,2604.1,0.7942]
[1727737117336,0.3743,2604.3,2604.1,1.17829]
[1727737117537,0.3743,2604.3,2604.1,0.7942]
[1727737118345,3.0743,2604.3,2604.1,0.4008]
[1727737119433,3.0743,2604.3,2604.0,0.3914]
[1727737119634,3.45837,2604.3,2604.0,0.3914]
[1727737119839,3.0743,2604.3,2604.0,0.3914]
[1727737120048,3.45838,2604.3,2604.0,0.3914]
[1727737120247,3.45838,2604.3,2603.7,1.0047217]
[1727737120248,5.9078,2604.1,2603.7,1.0047217]
[1727737120552,2.7,2603.8,2603.6,0.3844]
[1727737120747,0.3974,2603.7,2603.6,0.3844]
[1727737121539,0.3974,2603.7,2603.6,0.76857]
[1727737121739,0.3974,2603.7,2603.6,0.3844]
[1727737122652,0.3974,2603.7,2603.5,0.3812]
[1727737123148,2.7,2603.6,2603.5,0.3812]
[1727737123340,2.7,2603.6,2603.4,3.587]
[1727737123544,3.0789,2603.6,2603.4,3.9712]
[1727737124351,3.0789,2603.6,2603.4,3.2078]
[1727737127446,3.0789,2603.6,2603.4,3.59199]
[1727737127643,0.3974,2603.7,2603.4,3.2078]
[1727737127852,0.3974,2603.7,2603.6,0.38417]
[1727737128053,0.3955,2603.9,2603.7,0.38415]
[1727737128359,0.3955,2603.9,2603.8,0.3959]
[1727737128554,0.3935,2604.0,2603.8,0.3959]
[1727737128752,3.6047,2604.1,2604.0,0.38412]
[1727737129055,3.6047,2604.1,2603.9,0.7675]
[1727737129444,3.6047,2604.1,2603.9,1.15163]
[1727737129849,3.6047,2604.1,2603.9,0.7675]
[1727737131058,3.6047,2604.1,2603.9,1.15163]
[1727737131254,3.6047,2604.1,2603.9,0.7675]
[1727737133757,0.3969,2604.1,2603.9,0.7675]
[1727737134559,2.7,2604.0,2603.8,0.3959]
[1727737135053,2.7,2603.9,2603.6,0.3734]
[1727737135256,2.7,2603.9,2603.6,0.75757]
[1727737135257,0.3872,2603.8,2603.6,0.75757]
[1727737136859,0.3872,2603.8,2603.6,0.3734]
[1727737137058,0.3778,2603.7,2603.6,0.75757]
[1727737137549,2.7,2604.0,2603.6,0.3734]
[1727737137749,3.0778,2604.0,2603.7,0.38416]
[1727737139352,3.0778,2604.0,2603.6,0.3734]
[1727737139651,3.0778,2604.0,2603.7,0.38415]
[1727737140047,0.3778,2604.0,2603.9,0.38413]
[1727737140760,0.3778,2604.0,2603.8,0.38414]
[1727737141357,0.3778,2604.0,2603.9,0.3842]
[1727737141547,3.4888,2604.4,2604.1,0.3841]
[1727737142659,3.4888,2604.4,2604.0,0.7561]
[1727737142856,0.38407,2604.3,2604.0,0.7561]
[1727737143066,3.87287,2604.4,2604.0,1.14021]